Cogmind - Beta 15 @@@ ROGUE MODE // 2025.07.24 @ 22:00:15 Player: GiggleBox Result: Destroyed by US-2EF(h) with Hypervelocity Coil Gun Performance ------------- Evolutions (0) 0 Regions Visited (4) 800 Robots Destroyed (23) 115 Value Destroyed (445) 445 Prototype IDs (17) 340 Alien Tech Used (0) 0 Bonus (286) 286 TOTAL SCORE: 1986 Bonus ------- Registered with UFD 300 Friendly Fire -14 Cogmind --------- Core Integrity 0/250 Matter 206/300 Energy 85/100 System Corruption 0% Temperature Cool (6) Movement Core (350) Ox6 Location -7/Scraptown Parts ------- > --- POWER (1) -------- (None) > --- PROPULSION (2) --- (None) > --- UTILITY (2) ------ Large Storage Unit Improved Targeting Computer > --- WEAPON (2) ------- (None) > --- INVENTORY (15) --- Ion Engine Light Treads Overtuned Scrapsphere Scrap Suit Seismic Detector Improved Medium Armor Plating Assault Rifle Assault Rifle CPS Tube (1) Peak State ------------ > --- POWER ------------ Ion Engine > --- PROPULSION ------- Advanced Treads Medium Treads > --- UTILITY ---------- Medium Storage Unit A0-MCA's Component Scanner > --- WEAPON ----------- Flak Gun Light Cannon > --- INVENTORY -------- Ion Engine Light Treads Scrap Suit Seismic Detector Improved Targeting Computer Improved Medium Armor Plating Assault Rifle Assault Rifle Grenade Launcher [Rating: 25] Favorites ----------- Power Ion Engine Engine Ion Engine Propulsion Light Treads Treads Light Treads Utility Medium Storage Unit Device Seismic Detector Storage Medium Storage Unit Processor A0-MCA's Component Scanner Protection Improved Medium Armor Plating Weapon Assault Rifle Energy Gun Small Laser Ballistic Gun Assault Rifle Ballistic Cannon Light Cannon Special Weapon CPS Tube Build | -11 -10 -10 -7 -7 ------- Run | Yrd Mat Sub Rec Scr Slots Evolved . | . . . . . Power . | . . . . . Propulsion . | . . . . . Utility . | . . . . . Weapon . | . . . . . Parts Attached 25 | 9 3 . 5 8 Power 2 | 1 1 . . . Engine 2 | 1 1 . . . Core . | . . . . . Reactor . | . . . . . Propulsion 6 | 2 1 . 1 2 Treads 6 | 2 1 . 1 2 Leg . | . . . . . Wheel . | . . . . . Hover . | . . . . . Flight . | . . . . . Utility 9 | 3 1 . 1 4 Device 2 | 2 . . . . Storage 4 | 1 1 . . 2 Processor 2 | . . . . 2 Hackware . | . . . . . Protection 1 | . . . 1 . Artifact . | . . . . . Weapon 8 | 3 . . 3 2 Energy Gun 1 | 1 . . . . Energy Cannon . | . . . . . Ballistic Gun 4 | 2 . . 2 . Ballistic Cannon 1 | . . . 1 . Launcher 1 | . . . . 1 Special Weapon 1 | . . . . 1 Impact Weapon . | . . . . . Slashing Weapon . | . . . . . Piercing Weapon . | . . . . . Special Melee Weapon . | . . . . . Unidentified Prototypes . | . . . . . Parts Lost 5 | . . . 2 3 Power 1 | . . . . 1 Propulsion . | . . . . . Utility . | . . . . . Weapon 4 | . . . 2 2 Highest Loss Streak 3 | . . . 2 3 To Critical Strikes . | . . . . . Average Backups 9 | 1 8 10 9 9 Power 1 | . 1 2 1 1 Propulsion 1 | . 1 2 2 2 Utility 2 | . 1 2 2 3 Weapon 3 | . 3 4 3 2 Tool/Special . | . . . . . Unused Backups 8 | . . . 1 7 Power 1 | . . . 1 . Propulsion 4 | . . . . 4 Utility 2 | . . . . 2 Weapon 1 | . . . . 1 Tool/Special . | . . . . . Average Slot Usage (%) 99 | . 100 100 100 99 Engine 13 | . 14 14 14 13 Treads 27 | . 28 28 28 27 Device 7 | . 14 14 4 . Storage 14 | . 14 14 14 14 Processor 2 | . . . . 8 Protection 4 | . . . 9 5 Ballistic Gun 21 | . 28 28 19 13 Ballistic Cannon 6 | . . . 8 13 Peak Build Rating 25 | 7 8 8 17 25 Average Rating 12 | 5 7 8 13 21 On Entrance 8 | . 7 8 8 17 Naked Turns . | . . . . . Heaviest Build 32 | 15 20 20 29 32 Greatest Support 50 | 40 40 40 48 50 Greatest Overweight (x) . | . . . . . Average Overweight (x) . | . . . . . Largest Inventory Capacity 15 | 8 10 10 10 15 Average Capacity 10 | 7 9 10 10 10 Most Carried 12 | 3 10 10 10 12 Average Carried 9 | 1 8 10 9 10 Final Capacity 15 | 8 10 10 10 15 Final Carried 10 | 3 10 10 10 10 Class Distribution -------------------- 100% | Mutant Dominant Class ---------------- Mutant | -10/Materials Mutant | -10/Subcaves Mutant | -7/Recycling Mutant | -7/Scraptown Resources | -11 -10 -10 -7 -7 ----------- Run | Yrd Mat Sub Rec Scr Matter Collected 761 | 295 295 30 101 40 Remotely . | . . . . . Salvage Created 806 | 136 409 60 201 . Parts 51 | 7 39 . 5 . Haulers Intercepted 1 | . 1 . . . Recyclers Shooed 2 | . 1 . 1 . Parts Field Recycled . | . . . . . Retrieved Matter . | . . . . . Parts Self-Destructed 10 | . . 10 . . Prevented . | . . . . . Kills | -11 -10 -10 -7 -7 ------- Run | Yrd Mat Sub Rec Scr Combat Hostiles Destroyed 10 | . 9 . 1 . Guns 10 | . 9 . 1 . Classes Destroyed 10 | 2 6 1 1 . Worker 2 | . 2 . . . Tunneler 2 | 2 . . . . Hauler 1 | . 1 . . . Recycler 3 | 1 . . 2 . Operator 1 | . 1 . . . Turret 2 | . . 2 . . Watcher 2 | . 2 . . . Swarmer 3 | . 3 . . . Grunt 6 | . 6 . . . Sentry 1 | . . . 1 . Best Kill Streak 3 | 3 3 2 1 . Combat Bots Only 3 | . 3 . 1 . Max Kills in Single Turn 1 | 1 1 1 1 . Gunslinging . | . . . . . Exploded . | . . . . . Melee . | . . . . . Uniques/NPCs Destroyed . | . . . . . Combat | -11 -10 -10 -7 -7 -------- Run | Yrd Mat Sub Rec Scr Hostile Shots Fired 163 | . 29 15 63 56 Missed 48 | . 6 8 20 14 Hits 115 | . 23 7 43 42 Melee 12 | . . . . 12 Projectile 103 | . 23 7 43 30 Critical Strikes 2 | . . . . 2 Damage Taken 1324 | . 237 77 339 671 Core 254 | . 31 9 33 181 Absorbed by Shields . | . . . . . Core Remaining (%) 100 | 100 . . . . Volleys Fired 71 | 11 37 5 10 8 Largest 2 | 2 2 2 2 2 Hottest 58 | 40 40 40 58 58 Shots Fired 139 | 22 74 10 19 14 Gun 128 | 22 74 10 15 7 Cannon 10 | . . . 4 6 Launcher . | . . . . . Special 1 | . . . . 1 Kinetic 138 | 22 74 10 19 13 Thermal . | . . . . . Explosive . | . . . . . Electromagnetic . | . . . . . Robot Hit Streak 10 | 4 6 6 10 6 Robot Miss Streak 3 | 3 3 1 1 3 Penetration Max . | . . . . . Secondary Targets 3 | . 2 1 . . Max Gunslinging Chain 1 | . 1 1 . . Shots Hit Robots 91 | 13 42 8 15 13 Core Hits 45 | 4 23 5 7 6 Critical Kills . | . . . . . Critical Parts Destroyed . | . . . . . Critical Strikes . | . . . . . Melee Attacks . | . . . . . Impact . | . . . . . Slashing . | . . . . . Piercing . | . . . . . Sneak Attacks . | . . . . . Combat Hostiles . | . . . . . Follow-up Attacks . | . . . . . Damage Inflicted 1307 | 160 608 101 222 216 Guns 1124 | 160 550 101 187 126 Cannons 108 | . . . 18 90 Explosions . | . . . . . Melee . | . . . . . Ramming 75 | . 58 . 17 . Kinetic 1232 | 160 550 101 205 216 Thermal . | . . . . . Explosive . | . . . . . Electromagnetic . | . . . . . Impact . | . . . . . Slashing . | . . . . . Piercing . | . . . . . Highest Corruption . | . . . . . Average Corruption . | . . . . . Corruption Purged . | . . . . . Corruption Blocked . | . . . . . Overload Shots . | . . . . . Overflow Damage . | . . . . . Projectiles . | . . . . . Explosions . | . . . . . Melee . | . . . . . Knockbacks 4 | . 2 . . 2 Impact 2 | . 2 . . . Kinetic 2 | . . . . 2 Secondary . | . . . . . Self-Inflicted Damage . | . . . . . Shots . | . . . . . Rammed 18 | . 15 . 3 . Targets Rammed 20 | . 16 . 4 . Kicked . | . . . . . Crushed 2 | . 1 . 1 . Highest Temperature 16 | . 2 . 16 8 Average Temperature 6 | . 2 . 7 7 Received Heat Transfer 312 | . 102 60 102 48 Siege Activations . | . . . . . Martial Activations . | . . . . . Shielding Activations . | . . . . . Robots Disrupted . | . . . . . Combat Hostiles . | . . . . . Robots Corrupted . | . . . . . Combat Hostiles . | . . . . . Parts Fried . | . . . . . Impact Corruptions . | . . . . . Robots Melted . | . . . . . Combat Hostiles . | . . . . . Parts Melted . | . . . . . Heat Transferred . | . . . . . Parts Sabotaged . | . . . . . Parts Stolen 3 | . . . . 3 Parts Stripped . | . . . . . Power Chain Reactions . | . . . . . Alert | -11 -10 -10 -7 -7 ------- Run | Yrd Mat Sub Rec Scr Maximum Alert Level . | . . . . . Low Security (%) 100 | 100 100 . 100 . Level 1 . | . . . . . Level 2 . | . . . . . Level 3 . | . . . . . Level 4 . | . . . . . Level 5 . | . . . . . High Security . | . . . . . Max Security . | . . . . . Peak Influence 71 | 5 66 . 71 . Initial 9 | . . . 9 . Average 13 | 1 13 . 15 . Influence Increases 650 | 15 312 40 283 . Destroy 0b10 Robot/C 240 | . 180 40 20 . Destroy 0b10 Robot/NC 55 | 15 30 . 10 . Destroy Leader 46 | . 46 . . . Successful Hack 83 | . 40 . 43 . Select Force Hacks 210 | . . . 210 . Destroy Structure 1 | . 1 . . . Lose Combat Pursuer 15 | . 15 . . . Influence Decreases 650 | 15 312 20 303 . Entered New Map 11 | . . . 11 . Time Decay 639 | 15 312 20 292 . Squads Dispatched 2 | . 2 . . . Investigation 1 | . 1 . . . Extermination . | . . . . . Reinforcement 1 | . 1 . . . Assault . | . . . . . Garrison . | . . . . . Intercept . | . . . . . Searches Triggered . | . . . . . Construction Impeded . | . . . . . Haulers Reinforced . | . . . . . Active Scanning Responses . | . . . . . Cargo Convoy Interrupts . | . . . . . Stealth | -11 -10 -10 -7 -7 --------- Run | Yrd Mat Sub Rec Scr Distress Signals 1 | . 1 . . . Communications Jammed . | . . . . . Distress Signals . | . . . . . Times Spotted 32 | . 13 5 1 13 Peak Tracking Total 15 | . 3 3 1 15 Tactical Retreats 1 | . 1 . . . Traps | -11 -10 -10 -7 -7 ------- Run | Yrd Mat Sub Rec Scr Traps Triggered 1 | . 1 . . . Indirectly . | . . . . . Trap Hack Attempts . | . . . . . Triggered . | . . . . . Disarmed . | . . . . . Reprogrammed . | . . . . . Reused . | . . . . . Traps Extracted . | . . . . . Installed . | . . . . . Triggered . | . . . . . Machines | -11 -10 -10 -7 -7 ---------- Run | Yrd Mat Sub Rec Scr Machines Disabled 1 | . . . . 1 Max in Single Turn 1 | . . . . 1 Machines Repaired . | . . . . . Machines Dismantled . | . . . . . Machines Sabotaged . | . . . . . Overloaded Fab Kills . | . . . . . Hacking | -11 -10 -10 -7 -7 --------- Run | Yrd Mat Sub Rec Scr Machines Accessed 22 | . 7 . 13 2 Terminals 13 | . 7 . 6 . Fabricators . | . . . . . Repair Stations . | . . . . . Recycling Units 7 | . . . 7 . Scanalyzers . | . . . . . Garrison Access . | . . . . . Total Hacks 60 | . 24 . 29 7 Successful 36 | . 13 . 16 7 Failed 24 | . 11 . 13 . Catastrophic 4 | . 1 . 3 . Database Lockouts . | . . . . . Manual 48 | . 21 . 27 . Terminals 45 | . 24 . 21 . Fabricators . | . . . . . Repair Stations . | . . . . . Recycling Units 8 | . . . 8 . Scanalyzers . | . . . . . Garrison Access . | . . . . . Terminal Hacks 14 | . 4 . 3 7 Record 7 | . . . . 7 Robot Analysis 4 | . 2 . 2 . Prototype ID Bank 2 | . 1 . 1 . Hauler Manifests 1 | . 1 . . . Fabricator Hacks . | . . . . . Repair Station Hacks . | . . . . . Recycling Unit Hacks . | . . . . . Scanalyzer . | . . . . . Garrison Access Hacks . | . . . . . Unauthorized Hacks 20 | . 7 . 13 . Terminals 13 | . 7 . 6 . Botnet 4 | . 2 . 2 . Skim 9 | . 5 . 4 . Fabricators . | . . . . . Repair Stations . | . . . . . Recycling Units 7 | . . . 7 . Tunnel 7 | . . . 7 . Scanalyzers . | . . . . . Garrison Access . | . . . . . Data Cores Recovered . | . . . . . Used . | . . . . . Hacking Detections 12 | . 6 . 6 . Full Trace Events 4 | . 1 . 3 . Feedback Events . | . . . . . Feedback Blocked . | . . . . . Robot Schematics Acquired . | . . . . . Robots Built . | . . . . . Authchips . | . . . . . Time . | . . . . . Total Robot Build Rating . | . . . . . Part Schematics Acquired . | . . . . . Parts Built . | . . . . . Authchips . | . . . . . Time . | . . . . . Total Part Build Rating . | . . . . . Parts Repaired . | . . . . . Time . | . . . . . Parts Recycled . | . . . . . Recycled Matter . | . . . . . Retrieved Matter . | . . . . . Retrieved Components . | . . . . . Parts Scanalyzed . | . . . . . Part Schematics Acquired . | . . . . . Parts Damaged . | . . . . . Bothacking | -11 -10 -10 -7 -7 ------------ Run | Yrd Mat Sub Rec Scr Used RIF Installer . | . . . . . Robots Hacked . | . . . . . Non-combat . | . . . . . Combat . | . . . . . Robot Hacks Applied . | . . . . . Relay Couplers Released . | . . . . . Fabnet Peak Effective % . | . . . . . Robots Rewired . | . . . . . Allies Hacked . | . . . . . Hacks Repelled . | . . . . . Allies | -11 -10 -10 -7 -7 -------- Run | Yrd Mat Sub Rec Scr Total Allies . | . . . . . Largest Group . | . . . . . Highest-Rated Group . | . . . . . Highest-Rated Ally . | . . . . . Total Orders . | . . . . . Ally Attacks . | . . . . . Total Damage . | . . . . . Kills . | . . . . . Allies Corrupted . | . . . . . Allies Melted . | . . . . . Intel | -11 -10 -10 -7 -7 ------- Run | Yrd Mat Sub Rec Scr Active Infowar (turns) 2095 | 23 1567 140 365 . Seismic 2095 | 23 1567 140 365 . Robot Analysis Total 4 | . 2 . 2 . Derelict Logs Recovered 1 | . . 1 . . Drone Launches . | . . . . . Drone Recoveries . | . . . . . Exploration | -11 -10 -10 -7 -7 ------------- Run | Yrd Mat Sub Rec Scr Turns Passed 4080 | 142 1567 140 1096 1135 Spaces Moved 2248 | 59 758 79 656 696 Core 5 | 5 . . . . Treads 2243 | 54 758 79 656 696 Legs . | . . . . . Wheels . | . . . . . Hover . | . . . . . Flight . | . . . . . Fastest Speed 50 | 50 160 160 160 152 Average Speed 158 | 150 160 160 160 157 Slowest Speed 160 | 160 160 160 160 160 Overloaded Moves . | . . . . . Propulsion Burnouts . | . . . . . Robots Hopped . | . . . . . Potential Cave-ins . | . . . . . Cave-ins Triggered . | . . . . . Exploration Rate (%) 50 | 5 98 8 99 44 Regions Visited 4 Branch Regions 3 Pre-discovered Areas 7 | . . . 7 . Known Exits Taken . | . . . . . Unknown Exits Taken 4 | 1 1 1 1 . Scrap Searched 3 | . . . . 3 Spaces Dug . | . . . . . Terrain Destroyed . | . . . . . Melee . | . . . . . Projectile . | . . . . . AOE . | . . . . . Terrain Rammed . | . . . . . Walls Destroyed . | . . . . . Machines Disabled . | . . . . . Actions | -11 -10 -10 -7 -7 --------- Run | Yrd Mat Sub Rec Scr Total 2607 | 86 1030 83 682 726 Wait 212 | 5 206 . 1 . Move 2244 | 58 757 78 655 696 Hop . | . . . . . Pick Up 19 | 2 8 . 4 5 Fast Attach 8 | 8 . . . . Attach 3 | . . . 2 1 Detach 1 | 1 . . . . Swap 15 | 1 3 . 3 8 Drop 14 | . 3 . 3 8 Fire 71 | 11 37 5 10 8 Melee . | . . . . . Ram . | . . . . . Kick . | . . . . . Crush 20 | . 16 . 4 . Escape Stasis . | . . . . . Rewire . | . . . . . Trap . | . . . . . Miscellaneous . | . . . . . Route ------- -11/Scrapyard -10/Materials (discovered 6 exits: [*Mat x3] / [*Min x2] / [*Sub]) -10/Subcaves (discovered 3 exits: Mat x2 / *Rec) -7/Recycling (discovered 2 exits: [*Fac] / *Scr) -7/Scraptown History --------- Turn | Location | Event 4 | -11/Scrapyard | Discovered new exit (range 15) 143 | -11/Scrapyard | Entered Materials 144 | -10/Materials | Met a group of wandering Federalists 303 | -10/Materials | Build established: Mutant 360 | -10/Materials | Discovered new exit (range 11) 531 | -10/Materials | Discovered new exit (range 14) 657 | -10/Materials | Discovered new exit (range 14) 736 | -10/Materials | Discovered new exit (range 15) 885 | -10/Materials | Discovered new exit (range 3) 1063 | -10/Materials | Discovered new exit (range 8) 1290 | -10/Materials | Learned 2 Mines zone layouts 1440 | -10/Materials | Learned Storage non-interactive machine intel 1553 | -10/Materials | Learned 2 Mines zone layouts 1686 | -10/Materials | Learned Storage trap positions 1710 | -10/Materials | Entered Subcaves 1711 | -10/Subcaves | Continued accompanying wandering Federalists (4) 1711 | -10/Subcaves | Approached by a straggling Scientist 1711 | -10/Subcaves | Identified exit to Materials 1728 | -10/Subcaves | Learned Materials emergency access door positions 1814 | -10/Subcaves | Discovered new exit (range 11) 1850 | -10/Subcaves | Entered Recycling 1853 | -7/Recycling | Lost 4 allies 2010 | -7/Recycling | Scanned before Scraplab entrance 2359 | -7/Recycling | Discovered new exit (range 6) 2932 | -7/Recycling | Entered Scraplab 2945 | -7/Recycling | Discovered new exit (range 2) 2946 | -7/Recycling | Entered Scraptown 3004 | -7/Scraptown | Heard Great Nut preacher, LISTEN AND RECITE! 3070 | -7/Scraptown | Visited UFD Registry 3070 | -7/Scraptown | Registered with UFD as "Nukesink" 3124 | -7/Scraptown | Visited Junk Cannon Lab 3170 | -7/Scraptown | Visited Abandonware Association 3188 | -7/Scraptown | Learned abandonware demo "MELTYB.EXE" 3188 | -7/Scraptown | Learned abandonware demo "REBOOT5.EXE" 3226 | -7/Scraptown | Visited Scrap Suit Storage 3258 | -7/Scraptown | Visited DA-N13 Charitable Foundation 3306 | -7/Scraptown | Visited Supply Room 3335 | -7/Scraptown | Visited A0-MCA Data Center 3348 | -7/Scraptown | Given an A- rating by A0-MCA 3355 | -7/Scraptown | Found A0-MCA's Component Scanner 3396 | -7/Scraptown | Visited Derelict Rescue Squad 3444 | -7/Scraptown | Visited Chapter 10 3587 | -7/Scraptown | Found Scrap Suit 3647 | -7/Scraptown | Found DCF Scrap (28 items) 3700 | -7/Scraptown | Visited Infowarlord's Domain 4057 | -7/Scraptown | Attacked by Scraptown defenders 4073 | -7/Scraptown | Core integrity fell below 50% 4081 | -7/Scraptown | Core integrity fell below 20% 4081 | -7/Scraptown | Destroyed by US-2EF(h) with Hypervelocity Coil Gun Last Messages --------------- 04066_ Penetrated by Slug. 04070_ Slug penetrates Wall. 04070_ Slug penetrates Machine. 04070_ Machine disabled. 04070_ Slug penetrates Machine. 04072_ Penetrated by Slug. 04072_ Slug penetrates Machine. 04074_ 1B-IH3(r) follow-up attacks with Ripteeth. 04075_ Optimus knocked back. 04075_ Slug penetrates Machine. 04076_ Penetrated by Slug. 04076_ Lgt. Cannon destroyed. 04077_ Adv. Treads ripped off. 04078_ Penetrated by Slug. 04078_ Flak Gun destroyed. 04080_ Med. Treads ripped off. 04080_ Penetrated by Slug. 04080_ Grenade Launcher ripped off. 04081_ HV Slug penetrates Machine. 04081_ Penetrated by HV Slug. Map ----- +----------------------------------------------------+ | ???????##"###"| """#???# "###" #?#"! !"#?# # | | ???????# #???# """"" #?#" = "#?# # | | ???????# #???# #?##= ##?# # | | ???????# #???# #?# #?# # | | ???????########## ##???###### ####?###### ###?# # | | ?###????????##### ########### ########### ##### # | | ????????#"""" """"""""""" """"""""""" """"" " | | ????????#" | | ????????#" | | #???????#" | | #???????#" | | #???#####" | | #???#"""" """""""""""""""""""""""""""" | | #???#"""" """""""""""""""""""""""""""" | | #???#"""" ""###### ################"" | | #???#"""" ""# ##????????#"" | | #???#"""" ""# X"#????????#"" | | ###?#"""" ""# "" "" ##????????#"" | | ""#"#"""" ""# "" "" X"#??????###"" | | """"#"""" ""# " " ######### #"" | | ""#?#####" "" "" E r | | ###?????#" "" "" h | | #########" ""# " % " ######### #"" | | ""# " %"" ""#??????###"" | | ""; r 3" ##????????#"" | | ""# @r X"#????????#"" | | ! ! E % ##????????#"" | | !gg=##;;;# h################"" | | ="" "" """""""""""""""""""" | | """""""""""""""""""""""""""" | | | | | | | | #""""#" | | #????#" | | #????#"""""" """"""""""" """"""""""" """""" | | # ####????####### ########### ########### ###### | | # #????????# #???? ?????# ## | | # #????????#" ###???# #????# ## | | # #????????#"" #????# #????# ## | | # #????????#"""" #????# #????#"" ""## | | # #????????#"" " #????#######????#" "## | | # #????????#"""" #???????????????#"" ""## | | # #????????#"" #???????????????#" "## | | # #????????#"" #???????????????#"" ""## | | # #????????# " ##???????????????#" "## | | ? #????????#""""""""""????????????????" " & "?# | | ? #????????############???????????????""""""""?# | | ? ????????????????????????????????????########?# | | ???????????####################################### | +----------------------------------------------------+ Best States ------------- Heat Dissipation 25 Energy Generation 10 Energy Capacity 250 Matter Stores 300 Matter Capacity 300 Sight Range 16 Terrain Scan Density 10 Armor Coverage 225 Evasion (%) 40 Targeting Accuracy 6 Recoil Reduction 2 Item Schematics ----------------- None Robot Schematics ------------------ None Fabricated ------------ Nothing Repaired ---------- Nothing Alien Tech Used ----------------- None Achievements -------------- None Challenges ------------ None Game ------ Seed PlasmaAblativeClaws Manual? 0 Play Time 00:20:45 Cumulative 139.5 hours Start 2025.07.24 @ 21:39:45 End 2025.07.24 @ 22:00:15 Sessions 1 Manual Loads 0 Difficulty Rogue Special Mode None Game No. 134 Rogue 134 Adventurer 0 Explorer 0 Win Type - Total 1 Types 1/0/0/0/0/0/0/0/0/0 Lore% 68 Gallery% 61 Achievement% 54 Wizard Run 0 Options --------- Layout 0 ASCII 0 Keyboard 1 Movement Numpad Keybinds 0 Fullscreen 1 Font 24/Terminus Map View 76x50 Zoom Use 0% Tactical HUD 1 Map Filters NONE Filters NONE Steam 1 RUN: 30336723-a0a1-4ee9-90bc-6b2edb8632e6